bitfinex-derivatives/quotes_SOLF0:USTF0_20251126
["timestamp","ask_amount","ask_price","bid_price","bid_amount"]
[1764189455747,0.04515257,143.14,143.13,2.93]
[1764189456438,6.33435257,143.14,143.13,2.93]
[1764189463758,0.04515257,143.14,143.13,2.93]
[1764189468950,0.04515257,143.14,143.12,0.05231402]
[1764189469151,6.33455257,143.14,143.12,0.05231402]
[1764189469455,12.74824429,143.14,143.12,0.05231402]
[1764189470558,6.2896,143.13,143.12,0.05231402]
[1764189472264,12.70329172,143.13,143.12,0.05231402]
[1764189472866,6.2896,143.13,143.12,0.05231402]
[1764189473463,12.70329172,143.13,143.12,0.05231402]
[1764189478578,15.43960949,143.13,143.12,0.05231402]
[1764189479181,9.02591777,143.13,143.12,0.05231402]
[1764189479368,15.43960949,143.13,143.12,0.05231402]
[1764189486682,2.73631777,143.13,143.06,2.85]
[1764189486985,6.41831462,143.13,143.06,2.85]
[1764189487289,6.41831462,143.14,143.09,2.85]
[1764189487686,0.0445167,143.13,143.11,2.85]
[1764189491184,0.0445167,143.13,143.1,3.00753533]
[1764189491389,6.46283132,143.13,143.1,3.00753533]
[1764189491586,9.19914909,143.13,143.1,0.04753533]
[1764189491887,9.19914909,143.13,143.1,3.00753533]
[1764189492075,9.19914909,143.13,143.1,0.04753533]
[1764189492280,6.41831462,143.12,143.1,0.04753533]
[1764189492789,12.70851462,143.12,143.1,0.04753533]
[1764189494189,6.41831462,143.11,143.1,0.04753533]
[1764189496581,2.73631777,143.11,143.1,0.04753533]
[1764189497387,17.60392147,143.12,143.1,0.04753533]
[1764189498190,6.42861872,143.11,143.1,0.04753533]
[1764189498890,17.60392147,143.12,143.1,0.04753533]
[1764189499287,6.42770927,143.11,143.1,0.04753533]
[1764189500496,17.60392147,143.12,143.1,0.04753533]
[1764189500698,6.43334381,143.11,143.1,0.04753533]
[1764189506315,6.291,143.1,143.07,19.6]
[1764189506512,2.73631777,143.09,143.07,22.56]
[1764189506813,9.1723319,143.09,143.07,22.56]
[1764189507509,9.1723319,143.09,143.07,22.61166298]
[1764189507708,2.78873136,143.09,143.07,22.61166298]
[1764189508011,9.22474549,143.09,143.07,22.61166298]
[1764189508308,2.78873136,143.09,143.07,22.61166298]
[1764189509307,2.78873136,143.09,143.07,3.01166298]
[1764189509907,9.22474549,143.09,143.07,3.01166298]
[1764189510112,2.78873136,143.09,143.07,3.01166298]
[1764189510313,9.22474549,143.09,143.07,3.01166298]
[1764189511412,2.78873136,143.09,143.07,3.01166298]
[1764189512114,9.22474549,143.09,143.07,3.01166298]
[1764189514617,15.51624549,143.09,143.07,0.05166298]
[1764189515110,6.2918,143.08,143.07,0.05166298]
[1764189515305,2.73631777,143.06,143.05,14.02]
[1764189515511,2.73631777,143.06,143.0,2.96]
[1764189515512,109.20122147,143.06,143.0,2.96]
[1764189515712,2.73631777,143.02,143.0,2.96]
[1764189516218,2.78729192,143.02,143.0,3.01356196]
[1764189517115,0.05097415,143.02,143.0,3.01356196]
[1764189518822,0.05097415,143.02,143.0,9.30876196]
[1764189519022,0.05097415,143.02,143.01,2.96]
[1764189520620,0.05097415,143.02,143.0,0.05356196]
[1764189520621,9.08179192,143.02,143.0,0.05356196]
[1764189521523,6.34547415,143.02,143.0,0.05356196]
[1764189521727,2.73631777,143.01,143.0,0.05356196]
[1764189525629,97.9295,143.0,142.92,22.37]
[1764189525824,2.73631777,142.96,142.92,19.3]
[1764189526030,2.73631777,142.96,142.93,3.07]
[1764189526631,2.7853443,142.96,142.93,3.12276617]
[1764189527726,0.04902653,142.96,142.93,3.12276617]
[1764189528124,0.04902653,142.96,142.94,3.07]
[1764189536437,2.7853443,142.96,142.93,0.05276617]
[1764189537139,6.2976,142.95,142.93,0.05276617]
[1764189537529,9.0825443,142.96,142.93,3.12276617]
[1764189537728,6.34622653,142.96,142.93,3.12276617]
[1764189538541,6.34622653,142.96,142.93,0.05276617]
[1764189540142,6.34622653,142.96,142.93,3.12276617]
[1764189541940,0.04902653,142.96,142.93,3.12276617]
[1764189542138,6.3699496,143.04,142.93,3.12276617]
[1764189542344,4.28564793,143.04,142.93,3.07]
[1764189542640,5.50306965,143.04,142.93,3.07]
[1764189543344,0.0468971,143.0,142.97,0.04733503]
[1764189543535,0.0468971,143.0,142.97,3.11733503]
[1764189544447,0.0468971,143.0,142.98,3.07]
[1764189545344,0.0468971,143.0,142.99,3.07]
[1764189549141,6.2935,143.05,143.01,3.05]
[1764189550248,0.04990096,143.04,143.02,0.05372394]
[1764189550637,6.34350096,143.04,143.02,0.05372394]
[1764189551055,10.62914889,143.04,142.96,3.05]
[1764189551240,10.62914889,143.04,142.93,3.05]
[1764189551241,4.28564793,142.99,142.93,3.05]
[1764189551848,4.28564793,142.99,142.94,3.07]
[1764189552248,0.05196707,142.98,142.95,0.04888893]
[1764189552452,0.05196707,142.98,142.95,3.11888893]
[1764189553850,6.34826707,142.98,142.95,3.11888893]
[1764189555849,0.05196707,142.98,142.95,3.11888893]
[1764189556252,6.3699496,143.04,143.0,3.07]
[1764189556442,6.3699496,143.07,143.0,3.07]
[1764189556647,7.58700942,143.08,143.0,3.07]
[1764189556951,28.29595113,143.08,143.0,3.07]
[1764189557142,7.61381527,143.08,143.0,3.07]
[1764189557346,0.04557919,143.05,143.03,3.12102168]
[1764189561755,0.04557919,143.05,143.04,3.07]
[1764189565764,31.48772576,143.11,143.06,3.07]
[1764189565765,6.2909,143.11,143.06,3.07]
[1764189566663,0.0528815,143.1,143.07,3.11768146]
[1764189570966,0.0528815,143.1,143.07,9.40978146]
[1764189571269,0.0528815,143.1,143.08,3.07]
[1764189579576,6.2915,143.09,143.07,0.04768146]
[1764189579779,97.8815,143.07,143.02,3.07]
[1764189579970,4.28564793,143.04,142.99,22.26]
[1764189580881,0.04601547,143.03,143.0,0.05314277]
[1764189581069,6.2945,143.02,143.0,0.05314277]
[1764189581780,0.04601547,143.03,143.0,0.05314277]
[1764189582170,6.34011547,143.03,143.0,0.05314277]
[1764189582577,0.04601547,143.03,143.0,0.05314277]
[1764189583276,6.2945,143.02,143.0,0.05314277]
[1764189583578,4.28564793,143.01,142.99,19.12423574]
[1764189583970,4.28564793,143.01,142.95,3.1]
[1764189584778,0.05354867,142.99,142.97,0.04946186]
[1764189586980,6.34954867,142.99,142.97,0.04946186]
[1764189587179,4.28564793,142.98,142.97,0.04946186]
[1764189591383,4.28564793,142.98,142.91,3.1]
[1764189591384,6.297,142.97,142.91,3.1]
[1764189591985,6.2972,142.96,142.91,3.1]
[1764189592181,4.28564793,142.95,142.91,3.1]
[1764189592382,0.04510952,142.94,142.92,0.04484179]
[1764189592582,6.34340952,142.94,142.92,0.04484179]
[1764189593687,6.34340952,142.94,142.92,3.14484179]
[1764189594281,0.04510952,142.94,142.92,3.14484179]
[1764189603692,6.34310952,142.94,142.92,3.14484179]
[1764189605194,0.04510952,142.94,142.92,3.14484179]
[1764189611696,9.08638582,142.94,142.92,0.04484179]
[1764189618495,9.08638582,142.94,142.89,18.64]
[1764189618496,6.2998,142.9,142.89,18.64]
[1764189618696,9.0430763,142.9,142.89,18.64]
[1764189620097,0.04809911,142.91,142.9,3.12]
[1764189620305,0.04809911,142.91,142.89,18.64]
[1764189620504,2.7432763,142.9,142.89,18.64]
[1764189621600,6.34749911,142.91,142.89,21.76]
[1764189624208,12.72968315,142.91,142.89,21.76]
[1764189625108,2.7432763,142.9,142.89,21.76]
[1764189628307,9.12546034,142.9,142.89,21.76]
[1764189631009,15.42526034,142.9,142.89,21.76]
[1764189631410,15.42526034,142.9,142.89,3.12]
[1764189634010,12.68198404,142.9,142.89,3.12]
[1764189634805,0.04809911,142.91,142.89,3.12]
[1764189635006,2.7432763,142.93,142.89,3.12]
[1764189635214,5.1132763,142.93,142.89,3.12]
[1764189635403,10.9474037,142.92,142.88,3.16519119]
[1764189635607,2.7432763,142.92,142.88,3.16519119]
[1764189636013,0.04902902,142.91,142.88,3.16519119]
[1764189636813,0.04902902,142.91,142.88,9.46579119]
[1764189637009,0.04902902,142.91,142.89,3.12]
[1764189638711,32.5574037,142.95,142.89,3.12]
[1764189638915,11.32068,142.96,142.89,3.12]
[1764189639816,0.04850561,142.94,142.91,3.16465846]
[1764189641821,0.04850561,142.94,142.91,9.46395846]
[1764189642007,0.04850561,142.94,142.92,2.84]
[1764189643323,0.04850561,142.94,142.92,2.84]
[1764189648424,6.34650561,142.94,142.92,2.84]
[1764189649424,0.04850561,142.94,142.92,2.84]
[1764189650023,6.34650561,142.94,142.92,2.84]
[1764189651120,6.2984,142.93,142.91,2.88465846]
[1764189651316,2.42,142.93,142.91,2.88465846]
[1764189651515,2.79178191,142.94,142.91,2.88465846]
[1764189651715,0.04850561,142.94,142.91,2.88465846]
[1764189653619,6.34650561,142.94,142.91,2.88465846]
[1764189656528,9.08978191,142.94,142.91,2.88465846]
[1764189658726,6.34650561,142.94,142.91,2.88465846]
[1764189660324,0.04850561,142.94,142.91,9.18395846]
[1764189660626,0.04850561,142.94,142.92,2.84]
[1764189663519,0.04850561,142.94,142.93,2.84]
[1764189669629,2.46850561,142.94,142.91,3.02465846]
[1764189670626,6.2984,142.93,142.91,3.02465846]
[1764189672328,0.04850561,142.94,142.91,3.02465846]
[1764189673634,6.34650561,142.94,142.91,3.02465846]
[1764189674035,0.04850561,142.94,142.91,3.02465846]
[1764189677630,10.9974037,142.99,142.91,3.02465846]
[1764189677831,2.47,142.97,142.91,3.02465846]
[1764189678032,2.47,142.92,142.91,0.04465846]
[1764189678238,11.0474037,142.92,142.91,0.04465846]
[1764189679031,2.47,142.92,142.91,0.04465846]
[1764189681734,11.03112059,142.92,142.91,0.04465846]
[1764189682331,2.47,142.92,142.91,0.04465846]
[1764189682734,11.03112059,142.92,142.91,0.04465846]
[1764189683440,8.7693,142.91,142.9,15.13]
[1764189683635,8.7693,142.91,142.82,2.97]
[1764189683636,98.0215,142.87,142.82,2.97]
[1764189683842,2.47,142.84,142.77,9.2754]
[1764189684040,6.75682524,142.82,142.78,2.97]
[1764189684536,8.55671695,142.85,142.78,2.97]
[1764189684537,17.32891695,142.85,142.78,2.97]
[1764189684930,0.04889196,142.83,142.8,3.01461033]
[1764189686132,2.51889196,142.83,142.8,3.01461033]
[1764189686331,2.47,142.82,142.8,0.04461033]
[1764189687632,8.7735,142.82,142.8,0.04461033]
[1764189689140,0.04889196,142.83,142.8,3.01461033]
[1764189689339,2.51889196,142.83,142.8,3.01461033]
[1764189690450,2.51889196,142.83,142.8,0.04461033]
[1764189691542,2.51889196,142.83,142.8,3.01461033]
[1764189691943,8.82189196,142.83,142.8,3.01461033]
[1764189692843,2.47,142.82,142.8,0.04461033]
[1764189695448,2.47,142.81,142.8,0.04461033]
[1764189697140,2.42,142.77,142.73,17.99]
[1764189697346,2.42,142.77,142.74,2.97]
[1764189697549,2.42,142.8,142.74,2.97]
[1764189697745,4.28682524,142.81,142.74,2.97]
[1764189697943,26.42,142.82,142.74,2.97]
[1764189698249,0.04413245,142.79,142.78,2.97]
[1764189698949,2.46413245,142.79,142.77,0.04842092]
[1764189700254,2.42,142.78,142.77,0.04842092]
[1764189700454,2.37,142.76,142.73,15.02]
[1764189700645,2.37,142.75,142.73,15.02]
[1764189701045,2.37,142.74,142.68,2.97]
[1764189701441,6.35453779,142.72,142.7,0.04782371]
[1764189702255,8.73453779,142.72,142.7,0.04782371]
[1764189702752,0.04673779,142.72,142.7,2.90782371]
[1764189705461,0.04673779,142.72,142.71,2.86]
[1764189706965,30.3058,142.77,142.71,2.86]
[1764189707164,100.4563,142.79,142.71,2.86]
[1764189707165,2.38,142.79,142.71,2.86]
[1764189707965,0.05294535,142.76,142.75,2.86]
[1764189711166,2.47,142.85,142.76,2.86]
[1764189712163,28.28682524,142.86,142.79,2.90982297]
[1764189712164,2.5159384,142.82,142.79,2.90982297]
[1764189712764,0.0459384,142.82,142.79,2.90982297]
[1764189713868,0.0459384,142.82,142.81,2.86]
[1764189714667,6.3014,142.87,142.81,2.86]
[1764189715054,6.3014,142.87,142.82,2.86]
[1764189715458,2.47,142.9,142.83,2.86]
[1764189715660,0.04773862,142.88,142.85,2.90707732]
[1764189717374,6.3011,142.87,142.85,2.90707732]
[1764189717571,0.04773862,142.88,142.85,2.90707732]
[1764189717761,6.34853862,142.88,142.85,2.90707732]
[1764189717961,0.04773862,142.88,142.85,2.90707732]
[1764189719071,6.34853862,142.88,142.85,2.90707732]
[1764189720271,6.3012,142.87,142.85,2.90707732]
[1764189720467,8.7712,142.87,142.85,0.04707732]
[1764189720970,6.3012,142.87,142.85,2.90707732]
[1764189722569,6.3012,142.87,142.85,0.04707732]
[1764189723277,6.3012,142.87,142.85,2.90707732]
[1764189723968,0.04773862,142.88,142.85,2.90707732]
[1764189725375,6.34843862,142.88,142.85,2.90707732]
[1764189725571,0.04773862,142.88,142.85,2.90707732]
[1764189726175,0.04773862,142.88,142.87,2.86]
[1764189726374,6.2994,142.91,142.87,2.86]
[1764189727269,0.04964152,142.9,142.87,2.86]
[1764189729780,0.04964152,142.9,142.89,2.93]
[1764189730176,6.2981,142.94,142.89,2.93]
[1764189730881,2.52,142.93,142.89,2.93]
[1764189731083,8.8181,142.94,142.89,2.93]
[1764189731269,0.0487519,142.92,142.89,2.93]
[1764189731982,6.2994,142.91,142.89,2.93]
[1764189733482,0.0487519,142.92,142.89,2.93]
[1764189734276,6.3477519,142.92,142.89,2.93]
[1764189736683,8.8677519,142.92,142.89,2.93]
[1764189736883,6.3477519,142.92,142.89,2.93]
[1764189738884,0.0487519,142.92,142.89,2.93]
[1764189739787,5.26514526,142.98,142.91,2.98]
[1764189740288,6.2967,142.97,142.93,6.2984]
[1764189740488,8.8167,142.97,142.94,2.98]
[1764189740689,8.86408043,142.97,142.94,3.02527728]
[1764189740983,2.57,143.11,142.99,2.98]
[1764189741184,2.74514526,143.08,143.01,100.9016]
[1764189741383,2.74514526,143.08,143.02,2.98]
[1764189741583,7.59374613,143.14,142.99,2.98]
[1764189741584,2.74514526,143.06,142.99,2.98]
[1764189741780,2.74514526,143.08,143.0,100.9054]
[1764189741984,2.74514526,143.08,143.04,2.98]
[1764189741985,0.05034535,143.05,143.04,2.98]
[1764189742292,5.31514526,143.12,143.05,2.98]
[1764189742984,5.31514526,143.12,143.08,2.98]
[1764189743194,2.61806855,143.11,143.09,0.04413669]
[1764189744294,0.04806855,143.11,143.09,12.06058195]
[1764189744590,0.04806855,143.11,143.09,9.31543669]
[1764189745180,0.04806855,143.11,143.1,2.98]
[1764189745796,0.04806855,143.11,143.09,6.33543669]
[1764189745987,0.04806855,143.11,143.09,9.31543669]
[1764189746191,2.61806855,143.11,143.09,6.33543669]
[1764189747386,2.61806855,143.11,143.1,2.98]
[1764189747387,0.04806855,143.11,143.1,2.98]
[1764189747900,0.04806855,143.11,143.09,6.33543669]
[1764189748192,0.04806855,143.11,143.09,9.31543669]
[1764189749496,0.04806855,143.11,143.09,107.18043669]
[1764189749798,0.04806855,143.11,143.1,2.98]
[1764189750392,100.64681381,143.11,142.99,21.01]
[1764189750585,2.74514526,143.02,142.96,2.98]
[1764189750897,121.9106,143.09,142.97,2.98]
[1764189751191,2.74514526,143.03,142.97,2.98]
[1764189751689,0.05237494,143.01,142.97,2.98]
[1764189751892,0.05237494,143.01,142.99,0.04930379]
[1764189755492,1.45237494,143.01,142.99,0.04930379]
[1764189756387,0.05237494,143.01,142.99,0.04930379]
[1764189756593,0.05237494,143.01,142.99,3.02930379]
[1764189759500,97.8722,143.09,142.99,3.02930379]
[1764189759501,6.3771756,143.12,143.0,2.98]
[1764189759701,7.34043891,143.11,143.0,2.98]
[1764189760101,6.2913,143.1,143.02,2.98]
[1764189760506,0.0398303,143.07,143.05,0.05390775]
[1764189760702,0.0398303,143.07,143.05,3.03390775]
[1764189760896,7.34043891,143.14,143.05,3.03390775]
[1764189761100,6.2892,143.15,143.07,9.272]
[1764189761297,6.2892,143.15,143.08,2.86]
[1764189761897,6.2892,143.15,143.1,0.04509248]
[1764189762108,14.84502439,143.17,143.1,0.04509248]
[1764189762305,8.55692439,143.17,143.1,0.04509248]
[1764189762805,6.2886,143.16,143.1,0.04509248]
[1764189763108,8.55692439,143.17,143.1,2.90509248]
[1764189763911,14.84502439,143.17,143.1,2.90509248]
[1764189764301,13.62853891,143.17,143.1,2.90509248]
[1764189765100,24.06,143.18,143.1,9.19579248]
[1764189765911,30.3477,143.18,143.1,9.19579248]
[1764189766501,6.2881,143.17,143.1,9.19579248]
[1764189767210,6.2885,143.16,143.1,2.90509248]
[1764189767805,6.2885,143.16,143.1,0.04509248]
[1764189770014,6.289,143.15,143.1,0.04509248]
[1764189774010,6.2893,143.14,143.1,0.04509248]
[1764189776218,6.2898,143.13,143.1,0.04509248]
[1764189777012,6.2902,143.12,143.1,0.04509248]
[1764189782714,6.2902,143.12,143.1,2.90509248]
[1764189783018,6.2902,143.12,143.1,0.04509248]
[1764189783221,12.6673756,143.12,143.1,0.04509248]
[1764189783614,6.2902,143.12,143.1,0.04509248]
[1764189784424,12.6673756,143.12,143.1,0.04509248]
[1764189785126,6.2902,143.12,143.1,0.04509248]
[1764189785316,12.6673756,143.12,143.1,0.04509248]
[1764189792131,6.2905,143.11,143.1,0.04509248]
[1764189799847,12.6676756,143.11,143.1,0.04509248]
[1764189800547,6.2919,143.08,143.05,21.83]
[1764189801534,0.04509248,143.08,143.06,3.02]
[1764189802846,0.04509248,143.08,143.07,3.02]
[1764189804045,0.04509248,143.08,143.05,18.85429823]
[1764189804046,0.04509248,143.08,143.05,21.87429823]
[1764189804250,8.55671695,143.06,142.99,3.02]
[1764189804550,6.43262093,143.03,142.99,3.02]
[1764189805446,0.05372209,143.02,143.0,3.0738133]
[1764189808948,0.05372209,143.02,143.0,0.0538133]
[1764189809257,0.05372209,143.02,143.0,3.0738133]
[1764189810242,0.05372209,143.02,143.0,0.0538133]
[1764189810544,10.76339283,143.02,143.0,0.0538133]
[1764189810750,47.46044732,143.02,143.0,0.0038133]
[1764189812556,97.9354,142.99,142.92,17.65]
[1764189812752,10.68216549,142.98,142.92,17.65]
[1764189812952,10.68216549,142.98,142.92,20.67]
[1764189813352,4.27704981,142.98,142.92,20.67]
[1764189813554,0.05379483,142.96,142.94,0.05018073]
[1764189814754,0.05379483,142.96,142.94,3.07018073]
[1764189815355,0.05379483,142.96,142.94,0.05018073]
[1764189815751,0.05379483,142.96,142.94,3.07018073]
[1764189816256,6.2976,142.95,142.94,3.07018073]
[1764189818052,0.05379483,142.96,142.94,3.07018073]
[1764189819661,6.35109483,142.96,142.94,3.07018073]
[1764189819960,0.05379483,142.96,142.94,3.07018073]
[1764189821553,0.05379483,142.96,142.94,9.36808073]
[1764189821757,6.40511568,143.04,142.95,3.13]
[1764189822061,6.2935,143.05,143.0,3.13]
[1764189822562,10.57054981,143.05,143.0,3.13]
[1764189822765,0.04422311,143.04,143.01,0.04417586]
[1764189823266,6.33792311,143.04,143.01,0.04417586]
[1764189825166,6.33792311,143.04,143.01,3.17417586]
[1764189826163,0.04422311,143.04,143.01,3.17417586]
[1764189831267,0.04422311,143.04,142.95,3.13]
[1764189831268,4.27704981,143.02,142.95,3.13]
[1764189831469,4.27704981,142.99,142.93,3.13]
[1764189832267,6.40511568,143.01,142.94,3.13]
[1764189832471,0.05133527,142.97,142.96,3.13]
[1764189832767,0.04693796,142.98,142.96,3.13]
[1764189835572,0.04693796,142.98,142.95,3.17559147]
[1764189837475,0.04693796,142.98,142.95,9.47309147]
[1764189837676,0.04693796,142.98,142.96,3.13]
[1764189839379,0.04693796,142.98,142.95,3.17559147]
[1764189839578,6.34323796,142.98,142.95,3.17559147]
[1764189840275,0.04693796,142.98,142.95,3.17559147]
[1764189841983,0.04693796,142.98,142.97,3.13]
[1764189842480,0.04693796,142.98,142.95,3.17559147]
[1764189842683,2.78840332,142.98,142.95,3.17559147]
[1764189842978,2.78840332,142.98,142.95,0.04559147]
[1764189843171,6.2967,142.97,142.95,3.17559147]
[1764189843575,2.78840332,142.98,142.95,3.17559147]
[1764189843777,6.2967,142.97,142.95,3.17559147]
[1764189845478,6.2967,142.97,142.95,0.04559147]
[1764189845679,2.74146536,142.96,142.92,17.65]
[1764189845982,2.74146536,142.93,142.92,17.65]
[1764189846179,2.74146536,142.94,142.93,3.13]
[1764189846382,15.4370813,142.96,142.93,3.13]
[1764189846586,15.4370813,142.96,142.93,3.18091506]
[1764189846587,9.0910127,142.96,142.93,3.18091506]
[1764189846788,15.49392103,142.96,142.93,3.18091506]
[1764189847579,6.298,142.94,142.93,0.05091506]
[1764189847784,6.298,142.94,142.87,2.9]
[1764189847785,11.2816196,142.94,142.87,2.9]
[1764189847979,2.74146536,142.91,142.87,2.9]
[1764189848383,2.74146536,142.91,142.88,2.9]
[1764189848583,2.74146536,142.91,142.76,392.3542]
[1764189848782,0.05156424,142.87,142.86,2.9]
[1764189848983,0.05235643,142.88,142.86,2.9]
[1764189850088,2.74146536,142.91,142.87,2.9]
[1764189850393,100.75616536,142.88,142.85,0.04621157]
[1764189850575,2.74146536,142.86,142.85,0.04621157]
[1764189850782,9.14597556,142.86,142.85,0.04621157]
[1764189850977,2.74146536,142.86,142.85,0.04621157]
[1764189851186,9.13578983,142.86,142.85,0.04621157]
[1764189852595,6.39432447,142.86,142.85,0.04621157]
[1764189853184,12.74079742,142.87,142.85,0.04621157]
[1764189853896,6.34647295,142.87,142.85,0.04621157]
[1764189856085,30.42647295,142.87,142.85,0.04621157]
[1764189856596,6.34647295,142.87,142.85,0.04621157]
[1764189856992,0.04507295,142.87,142.85,2.87621157]
[1764189857191,0.04507295,142.87,142.85,0.04621157]
[1764189859387,0.04507295,142.87,142.85,2.87621157]
[1764189861281,6.2996,142.91,142.85,2.87621157]
[1764189861495,24.08,142.93,142.85,2.87621157]
[1764189862292,0.04841488,142.9,142.87,2.83]
[1764189862493,0.04841488,142.9,142.87,2.87436995]
[1764189862891,0.04841488,142.9,142.87,9.17526995]
[1764189863086,0.04841488,142.9,142.88,2.83]
[1764189864283,0.04841488,142.9,142.87,0.04436995]
[1764189864699,6.3003,142.89,142.87,0.04436995]
[1764189869302,0.04841488,142.9,142.87,2.87436995]
[1764189870691,6.34831488,142.9,142.87,0.04436995]
[1764189870896,6.34831488,142.9,142.87,2.87436995]
[1764189871703,0.04841488,142.9,142.87,2.87436995]
[1764189873297,6.34821488,142.9,142.87,2.87436995]
[1764189873498,0.04841488,142.9,142.87,2.87436995]
[1764189875006,6.34831488,142.9,142.87,2.87436995]
[1764189875201,9.09299389,142.9,142.87,2.87436995]
[1764189879612,0.04841488,142.9,142.87,2.87436995]
[1764189881110,2.79309389,142.9,142.87,2.87436995]
[1764189882304,9.18741836,142.9,142.87,2.87436995]
[1764189882710,6.3003,142.89,142.87,2.87436995]
[1764189883109,6.3003,142.89,142.87,0.04436995]
[1764189884411,6.3003,142.89,142.87,2.94436995]
[1764189887318,12.69462447,142.89,142.87,2.94436995]
[1764189889219,15.43960348,142.88,142.87,0.04436995]
[1764189889412,98.0302,142.86,142.75,2.9]
[1764189889616,6.41975,142.82,142.75,2.9]
[1764189889821,6.41975,142.82,142.79,2.9]
[1764189890025,9.16442901,142.83,142.79,2.9]
[1764189890425,6.46547395,142.82,142.81,2.9]
[1764189890616,6.46547395,142.82,142.8,0.04856221]
[1764189891019,6.46547395,142.82,142.8,2.94856221]
[1764189892420,12.76887395,142.82,142.8,2.94856221]
[1764189892622,6.41975,142.81,142.8,0.04856221]
[1764189893024,6.34912395,142.82,142.8,2.94856221]
[1764189893025,6.46547395,142.82,142.8,2.94856221]
[1764189894323,0.04572395,142.82,142.8,2.94856221]
[1764189896029,6.41975,142.81,142.8,0.04856221]
[1764189896325,6.46547395,142.82,142.8,0.04856221]
[1764189896724,6.41975,142.81,142.8,0.04856221]
[1764189897126,6.41975,142.81,142.8,2.94856221]
[1764189897330,0.04572395,142.82,142.8,2.94856221]
[1764189897831,6.41988202,142.84,142.82,2.9]
[1764189898027,8.55966666,142.87,142.82,2.9]
[1764189898227,11.30434567,142.88,142.82,2.9]
[1764189898428,11.30434567,142.88,142.78,100.81937901]
[1764189898429,11.30434567,142.86,142.78,2.9]
[1764189898633,2.74467901,142.84,142.78,2.9]
[1764189898828,0.04478822,142.82,142.8,0.05350833]
[1764189899227,0.04478822,142.82,142.8,2.95350833]
[1764189899934,9.09286723,142.82,142.8,0.05350833]
[1764189900137,2.78946723,142.82,142.8,0.05350833]
[1764189900435,2.78946723,142.82,142.8,2.95350833]
[1764189901033,2.78946723,142.82,142.8,0.05350833]
[1764189901336,2.78946723,142.82,142.74,2.9]
[1764189901337,8.55966666,142.81,142.74,2.9]
[1764189901526,2.74467901,142.8,142.74,2.9]
[1764189902434,11.30434567,142.83,142.76,2.94716821]
[1764189902627,8.55966666,142.84,142.77,2.9]
[1764189902834,8.55966666,142.85,142.77,2.9]
[1764189903638,0.05266152,142.82,142.8,2.94866408]
[1764189905338,0.05266152,142.82,142.8,0.04866408]
[1764189905936,6.35606152,142.82,142.8,0.04866408]
[1764189910744,0.05266152,142.82,142.8,0.04866408]
[1764189912234,6.35606152,142.82,142.8,0.04866408]
[1764189913544,0.05266152,142.82,142.8,2.98866408]
[1764189914540,0.05266152,142.82,142.8,9.29276408]
[1764189914842,4.29273808,142.9,142.81,2.94]
[1764189915642,0.05211516,142.87,142.84,2.98792436]
[1764189915842,0.05211516,142.87,142.76,98.0899]
[1764189915843,98.0386,142.84,142.75,2.94]
[1764189916041,98.0386,142.84,142.72,16.33]
[1764189916042,102.35473808,142.81,142.72,19.27]
[1764189916346,4.29273808,142.78,142.72,19.27]
[1764189916741,6.3057,142.77,142.72,19.27]
[1764189916944,0.04425551,142.76,142.73,2.98604776]
[1764189918238,0.04425551,142.76,142.74,2.94]
[1764189919037,0.04425551,142.76,142.75,2.94]
[1764189922850,0.04425551,142.76,142.73,0.04604776]
[1764189923658,0.04425551,142.76,142.74,2.94]
[1764189924056,8.55966666,142.82,142.74,2.94]
[1764189924254,106.60106666,142.84,142.74,2.94]
[1764189924559,130.72106666,142.84,142.74,2.94]
[1764189925249,0.05184936,142.8,142.78,0.04645603]
[1764189926656,0.05184936,142.8,142.78,2.98645603]
[1764189930561,0.05184936,142.8,142.78,0.04645603]
[1764189934361,8.61151602,142.8,142.78,0.04645603]
[1764189934764,0.05184936,142.8,142.78,0.04645603]
[1764189935159,8.61151602,142.8,142.78,0.04645603]
[1764189935460,0.05184936,142.8,142.78,0.04645603]
[1764189935663,8.61151602,142.8,142.78,0.04645603]
[1764189935860,0.05184936,142.8,142.78,0.04645603]
[1764189936751,14.91581602,142.8,142.78,0.04645603]
[1764189936955,6.35614936,142.8,142.78,0.04645603]
[1764189937258,8.57979451,142.79,142.78,0.04645603]
[1764189940777,14.93594387,142.8,142.78,0.04645603]